bitfinex-derivatives/quotes_ETHF0:USTF0_20250807
["timestamp","ask_amount","ask_price","bid_price","bid_amount"]
[1754608442544,64.0970899,3895.9,3895.8,5.07407]
[1754608443044,63.4173,3895.9,3895.8,5.07407]
[1754608443550,63.4173,3895.9,3895.8,6.07397]
[1754608444347,40.8,3895.9,3895.8,6.07397]
[1754608445051,0.7038,3896.0,3895.9,2.7275]
[1754608445257,0.7038,3896.0,3895.9,4.5609]
[1754608445550,41.5038,3896.0,3895.9,4.5609]
[1754608445753,0.7038,3896.0,3895.9,4.5609]
[1754608445945,1.2698,3896.0,3895.9,4.5609]
[1754608446151,1.2698,3896.0,3895.9,5.5608]
[1754608446352,5.2552,3896.0,3895.9,4.7316]
[1754608447048,5.2552,3896.0,3895.9,2.2798]
[1754608447254,5.2552,3896.0,3895.9,0.9999]
[1754608447748,4.5514,3896.0,3895.9,0.9999]
[1754608450250,7.7592,3896.0,3895.9,0.9999]
[1754608450756,8.440737,3896.0,3895.9,0.9999]
[1754608451148,1.8295,3895.4,3895.3,0.51323]
[1754608451348,22.7064,3895.4,3895.3,0.51323]
[1754608451655,4.5514,3895.2,3895.1,1.31005]
[1754608451855,4.5514,3895.0,3894.9,0.92427374]
[1754608452048,22.7064,3895.0,3894.9,0.92427374]
[1754608452254,22.7064,3895.0,3894.3,3.2078]
[1754608452255,21.55894965,3895.0,3894.3,3.2078]
[1754608452558,4.3898,3894.4,3894.3,7.7687]
[1754608452750,22.5428,3894.4,3894.3,3.2078]
[1754608453157,22.5428,3894.4,3894.3,4.4576]
[1754608453746,22.5428,3894.4,3894.3,6.9395]
[1754608454658,22.5428,3894.4,3894.3,3.2078]
[1754608455251,22.5428,3894.4,3894.3,3.7613]
[1754608455757,22.5428,3894.4,3894.3,7.45287]
[1754608456448,22.5428,3894.4,3894.3,6.9395]
[1754608457451,23.05615,3894.4,3894.3,6.9395]
[1754608457751,0.8792,3895.1,3894.9,1.8334]
[1754608457956,18.716,3895.1,3895.0,1.8334]
[1754608458158,0.51327,3895.0,3894.6,0.51332]
[1754608458352,0.566,3894.7,3894.6,2.34673]
[1754608458552,2.1849,3894.7,3894.6,2.9349]
[1754608458856,4.3898,3894.7,3894.6,3.7317]
[1754608459053,22.5398,3894.7,3894.6,3.7317]
[1754608459360,22.5398,3894.7,3894.6,4.7316]
[1754608461446,22.5398,3894.7,3894.6,0.9999]
[1754608462760,23.21953472,3894.7,3894.6,0.9999]
[1754608463645,5.06953472,3894.7,3894.6,0.9999]
[1754608463847,23.21553472,3894.7,3894.6,0.9999]
[1754608464651,0.566,3894.4,3894.3,1.1015]
[1754608464859,23.04816,3894.4,3894.3,3.7317]
[1754608465060,23.04816,3894.4,3894.3,4.7316]
[1754608465462,20.84326,3894.4,3894.3,6.07417]
[1754608465756,20.84326,3894.4,3894.3,5.5608]
[1754608465953,20.84326,3894.4,3894.3,4.7316]
[1754608466459,23.04816,3894.4,3894.3,4.7316]
[1754608466857,23.04816,3894.4,3894.3,2.8333]
[1754608467059,23.04816,3894.4,3894.3,2.2497]
[1754608468159,23.04816,3894.4,3894.3,4.7316]
[1754608469062,23.04816,3894.4,3894.3,0.9999]
[1754608470263,23.04816,3894.4,3894.3,1.5534]
[1754608470462,23.04816,3894.4,3894.3,4.7316]
[1754608470960,23.04816,3894.4,3894.3,1.5534]
[1754608471462,26.25596,3894.4,3894.3,0.9999]
[1754608471753,26.25596,3894.4,3894.0,1.8983]
[1754608471954,2.26819,3894.1,3894.0,2.4518]
[1754608472156,23.01649,3894.1,3894.0,2.4518]
[1754608472356,23.01649,3894.1,3894.0,3.7569]
[1754608473061,23.01649,3894.1,3894.0,4.5968]
[1754608473559,3.2078,3894.4,3894.3,4.5836]
[1754608473960,21.3428,3894.4,3894.3,4.5836]
[1754608474164,3.2078,3894.8,3894.7,3.45661]
[1754608474352,21.3428,3894.8,3894.7,5.09691]
[1754608475057,21.3428,3894.8,3894.7,4.5836]
[1754608475267,25.8638,3894.8,3894.7,4.5836]
[1754608475665,23.9915,3894.8,3894.7,4.5836]
[1754608476664,24.7708,3894.8,3894.7,4.5836]
[1754608477866,3.2078,3895.3,3895.2,0.51325]
[1754608478065,18.129,3895.3,3895.2,4.5836]
[1754608478459,21.557,3895.3,3895.2,4.5836]
[1754608478659,22.65,3895.3,3895.2,4.59772123]
[1754608479056,22.65,3895.3,3895.2,3.75782123]
[1754608479264,23.33050956,3895.3,3895.2,3.75782123]
[1754608479464,22.65,3895.3,3895.2,3.75782123]
[1754608480259,5.2019841,3895.3,3895.2,4.59772123]
[1754608480454,21.556,3895.3,3895.2,4.59772123]
[1754608480766,22.2369841,3895.3,3895.2,5.59762123]
[1754608481162,3.2078,3895.7,3895.6,3.77199]
[1754608481360,3.2078,3895.7,3895.6,5.09679]
[1754608481571,5.86157904,3895.7,3895.6,5.11091123]
[1754608482164,4.6534,3895.7,3895.6,5.11091123]
[1754608482562,1.7968,3895.8,3895.6,5.11091123]
[1754608482767,1.7968,3895.8,3895.7,4.5836]
[1754608483769,1.7968,3895.8,3895.7,5.59762123]
[1754608485568,2.4972,3895.8,3895.7,5.59762123]
[1754608486858,3.0489,3895.8,3895.7,1.01402123]
[1754608487066,7.0182,3895.8,3895.7,4.75772123]
[1754608487268,20.6112,3895.8,3895.7,5.59762123]
[1754608487961,21.1629,3895.8,3895.7,5.59762123]
[1754608488162,22.0568,3895.8,3895.7,5.59762123]
[1754608489770,20.6092,3895.8,3895.7,5.59762123]
[1754608490365,24.3509,3895.8,3895.7,5.59762123]
[1754608490565,2.4972,3895.8,3895.7,5.59762123]
[1754608491169,3.0489,3895.8,3895.7,5.59762123]
[1754608491471,5.1459,3895.8,3895.7,5.59762123]
[1754608492063,3.576,3895.8,3895.7,5.59762123]
[1754608492366,2.4972,3895.8,3895.7,5.59762123]
[1754608495168,3.0489,3895.8,3895.7,5.59762123]
[1754608495367,3.9428,3895.8,3895.7,5.59762123]
[1754608495568,5.9252,3895.8,3895.7,5.59762123]
[1754608496076,2.4972,3895.8,3895.7,5.59762123]
[1754608496574,3.9428,3895.8,3895.7,5.59762123]
[1754608496772,7.0182,3895.8,3895.7,1.01402123]
[1754608497471,25.1192,3895.8,3895.7,1.01402123]
[1754608500174,25.1192,3895.8,3895.7,1.74502123]
[1754608500376,25.1192,3895.8,3895.7,2.26942123]
[1754608500673,7.0182,3895.8,3895.7,3.95732123]
[1754608500977,25.1162,3895.8,3895.7,4.75772123]
[1754608501372,25.1162,3895.8,3895.7,1.58812123]
[1754608501576,25.1162,3895.8,3895.7,1.01402123]
[1754608502876,23.2419,3895.8,3895.7,5.56212123]
[1754608503380,25.0563,3895.8,3895.7,5.56212123]
[1754608503584,25.0563,3895.8,3895.7,1.01402123]
[1754608504377,25.73611132,3895.8,3895.7,1.01402123]
[1754608504778,25.0563,3895.8,3895.7,1.01402123]
[1754608505282,25.73626566,3895.8,3895.7,1.01402123]
[1754608508787,25.72926566,3895.8,3895.7,1.01402123]
[1754608512084,25.72926566,3895.8,3895.7,2.09332123]
[1754608512986,25.72926566,3895.8,3895.7,1.01402123]
[1754608513890,25.72926566,3895.8,3895.7,5.56212123]
[1754608514188,25.72926566,3895.8,3895.7,4.69742123]
[1754608514784,25.72926566,3895.8,3895.7,9.28308123]
[1754608514987,25.72926566,3895.8,3895.7,8.76992123]
[1754608515586,21.26616566,3895.8,3895.7,8.76992123]
[1754608516187,25.69206566,3895.8,3895.7,8.76992123]
[1754608516387,3.17716566,3895.8,3895.7,5.56212123]
[1754608516595,2.4972,3895.8,3895.7,6.07528123]
[1754608516789,2.4972,3895.8,3895.7,9.28308123]
[1754608516983,2.4972,3895.8,3895.7,5.56212123]
[1754608520295,3.0505,3895.8,3895.7,5.56212123]
[1754608520491,3.8873,3895.8,3895.7,5.56212123]
[1754608521188,1.6719,3895.8,3895.7,5.56212123]
[1754608521395,0.7004,3895.8,3895.7,8.76992123]
[1754608522299,0.7004,3895.8,3895.7,5.56212123]
[1754608522602,3.388,3895.8,3895.7,5.56212123]
[1754608523199,0.7004,3895.8,3895.7,1.72182123]
[1754608523398,0.8368,3896.9,3896.2,0.8647]
[1754608523699,0.8368,3896.9,3895.8,1.28288]
[1754608523700,0.67996566,3897.1,3897.0,1.11159]
[1754608523893,0.67996566,3897.4,3897.2,5.06106]
[1754608524201,3.2078,3897.5,3896.7,3.2078]
[1754608524202,3.2078,3897.5,3897.4,5.06104]
[1754608524493,1.6235,3897.8,3897.7,0.5129]
[1754608524797,3.8992,3897.8,3897.7,5.07512123]
[1754608524997,3.8992,3897.8,3897.7,4.56222123]
[1754608525303,5.7136,3897.8,3897.7,2.39982123]
[1754608525600,5.7136,3897.8,3897.7,2.32042123]
[1754608526294,5.7136,3897.8,3897.7,4.69742123]
[1754608526496,4.6859,3897.8,3897.7,5.56212123]
[1754608526695,3.8992,3897.8,3897.7,5.56212123]
[1754608526901,2.3518,3897.8,3897.7,5.56212123]
[1754608527298,1.0641,3897.8,3897.7,5.56212123]
[1754608527700,3.3982,3897.8,3897.7,5.56212123]
[1754608527896,4.4259,3897.8,3897.7,5.56212123]
[1754608529510,3.3982,3897.8,3897.7,5.56212123]
[1754608530605,4.93878,3897.8,3897.7,5.56212123]
[1754608530800,4.93878,3897.8,3897.7,4.69742123]
[1754608532503,4.93878,3897.8,3897.7,5.57682123]
[1754608532893,4.4259,3897.8,3897.7,5.57682123]
[1754608534705,1.0,3898.0,3897.9,1.7648]
[1754608534901,1.0,3898.0,3897.9,4.4645]
[1754608535101,2.1204,3898.0,3897.9,4.4645]
[1754608535407,5.4593,3898.0,3897.9,3.5851]
[1754608535807,5.4593,3898.0,3897.9,3.59922123]
[1754608536002,5.4593,3898.0,3897.9,2.27622123]
[1754608537101,5.4593,3898.0,3897.9,4.47862123]
[1754608538109,5.4593,3898.0,3897.9,2.27622123]
[1754608538606,5.4593,3898.0,3897.9,0.01412123]
[1754608539007,4.4593,3897.8,3897.7,0.9999]
[1754608539605,2.7064,3896.9,3896.8,2.27781]
[1754608539815,4.4593,3896.9,3896.8,4.97751]
[1754608540004,2.7064,3896.9,3896.8,4.97751]
[1754608541513,4.4593,3896.9,3896.8,4.4645]
[1754608541908,0.51301,3896.8,3896.6,1.0328]
[1754608542105,4.4593,3896.7,3896.6,1.0853]
[1754608542410,4.4593,3896.7,3896.6,4.4645]
[1754608543914,1.8242,3896.6,3896.5,3.5851]
[1754608544116,4.4593,3896.6,3896.5,4.4645]
[1754608545410,4.4593,3896.6,3896.5,1.7648]
[1754608545806,4.4593,3896.6,3896.5,2.7976]
[1754608546007,4.4593,3896.6,3896.5,3.5851]
[1754608546209,4.4593,3896.6,3896.5,4.4645]
[1754608546409,2.7064,3896.5,3896.4,2.27787]
[1754608546607,4.4593,3896.5,3896.4,3.31067]
[1754608546913,4.4593,3896.5,3896.4,4.4645]
[1754608550107,4.97235,3896.5,3896.4,4.4645]
[1754608550313,4.4593,3896.5,3896.4,4.4645]
[1754608551306,4.4593,3896.5,3896.4,2.6442]
[1754608551509,4.49029,3897.0,3896.1,3.5851]
[1754608551510,4.4593,3896.2,3896.1,3.5851]
[1754608551718,4.4593,3896.2,3896.1,4.4645]
[1754608554614,4.4593,3896.2,3896.1,3.929]
[1754608554810,4.97241,3896.1,3896.0,1.0328]
[1754608555012,4.97246,3895.8,3895.7,18.9064]
[1754608555218,3.14827,3895.7,3895.5,4.4645]
[1754608555415,4.4593,3895.6,3895.5,3.677]
[1754608555914,4.4593,3895.6,3895.5,4.47869334]
[1754608557117,4.4593,3895.6,3895.5,1.77899334]
[1754608557319,4.4593,3895.6,3895.5,0.01419334]
[1754608561627,2.29419,3894.7,3894.6,4.62190525]
[1754608561829,4.92919,3894.7,3894.6,3.7737]
[1754608562120,4.92919,3894.7,3894.6,4.476]
[1754608563519,1.61782,3894.5,3894.4,3.5316]
[1754608563712,4.92922,3894.5,3894.4,4.4218]
[1754608564225,4.92922,3894.5,3894.4,3.5316]
[1754608564421,4.92922,3894.5,3894.4,2.7983]
[1754608564625,4.92922,3894.5,3894.3,3.2078]
[1754608564822,2.635,3894.4,3894.3,3.2078]
[1754608565029,1.7809,3894.2,3894.1,1.7665]
[1754608565329,4.4159,3894.2,3894.1,1.7665]
[1754608565533,4.4159,3894.2,3894.1,3.5316]
[1754608567326,3.6205,3893.9,3893.8,2.6553]
[1754608567533,4.9293,3893.9,3893.8,1.0628]
[1754608567735,1.11463,3893.7,3893.6,1.2698]
[1754608567929,4.92933,3893.7,3893.6,1.7651]
[1754608568632,4.92935,3893.5,3893.4,3.5316]
[1754608569736,1.2871,3893.6,3893.1,3.2078]
[1754608569737,0.51349,3893.2,3893.1,3.2078]
[1754608569933,4.92939,3893.2,3893.1,1.7651]
[1754608570128,0.51352,3893.0,3892.9,1.0332]
[1754608570431,3.2078,3893.5,3892.8,4.4218]
[1754608570432,4.92943,3892.9,3892.8,4.4218]
[1754608570826,4.92943,3892.9,3892.8,3.5316]
[1754608571027,1.7809,3892.6,3892.5,4.4218]
[1754608571233,4.4159,3892.6,3892.5,4.4218]
[1754608572638,4.4159,3892.6,3892.5,4.93538]
[1754608572833,4.4159,3892.6,3892.5,4.4218]
[1754608573534,0.51356,3892.7,3892.4,0.51359]
[1754608573535,3.5573,3892.5,3892.4,4.04519]
[1754608573837,4.92948,3892.5,3892.4,3.5316]
[1754608574037,4.92948,3892.5,3892.4,0.7023]
[1754608574342,4.92951,3892.3,3892.2,7.6296]
[1754608575935,4.4159,3892.3,3892.2,7.6296]
[1754608576229,4.13402,3893.0,3892.9,4.4218]
[1754608576439,0.6012,3893.0,3892.9,4.93533]
[1754608576629,4.4949,3893.6,3893.5,4.4218]
[1754608576832,5.00834,3893.6,3893.5,4.4218]
[1754608577342,5.60954,3893.6,3893.5,4.4218]
[1754608577535,6.46814,3893.6,3893.5,4.4218]
[1754608577730,8.44324,3893.6,3893.5,4.4218]
[1754608577942,8.44324,3893.6,3893.5,5.4217]
[1754608578441,9.42424,3893.6,3893.5,5.4217]
[1754608578633,9.42424,3893.6,3893.5,0.9999]
[1754608579229,5.00834,3893.6,3893.5,5.4217]
[1754608579440,1.2871,3893.6,3893.5,5.4217]
[1754608579737,3.2078,3894.6,3894.2,1.7651]
[1754608579738,2.2913868,3894.3,3894.2,1.7651]
[1754608579936,1.61786,3894.3,3894.2,4.2589]
[1754608580142,2.41326,3894.3,3894.2,4.2589]
[1754608580337,1.1868568,3894.5,3894.2,4.2589]
[1754608580535,3.2078,3894.6,3894.5,4.2589]
[1754608580848,1.8999,3894.9,3894.8,1.7651]
[1754608581034,2.2912868,3895.0,3894.9,3.5566]
[1754608581242,1.1045,3895.0,3894.9,4.2589]
[1754608582544,3.2078,3895.7,3895.6,4.2589]
[1754608582738,3.2078,3895.7,3895.2,3.7636]
[1754608582739,4.13371,3895.3,3895.2,3.7636]
[1754608582941,4.92911,3895.3,3895.2,2.303]
[1754608583238,4.92916,3895.0,3894.9,1.2698]
[1754608583445,4.92916,3895.0,3894.9,0.7023]
[1754608583743,3.2078,3895.3,3894.4,3.2121]
[1754608583744,1.7809,3894.5,3894.4,3.2121]
[1754608583939,4.4159,3894.5,3894.4,1.2698]
[1754608584446,4.4159,3894.5,3894.4,3.3029]
[1754608584946,0.51328,3894.8,3894.7,0.5675]
[1754608585148,1.61778,3894.8,3894.7,4.2453]
[1754608585344,3.94818,3894.8,3894.7,4.2453]
[1754608585841,3.94818,3894.8,3894.7,5.2452]
[1754608586040,5.60505931,3894.8,3894.7,0.9999]
[1754608586445,4.92865931,3894.8,3894.7,2.2697]
[1754608586751,5.60505931,3894.8,3894.7,5.2452]
[1754608587446,5.60505931,3894.8,3894.7,3.3029]
[1754608588146,5.60505931,3894.8,3894.7,4.7499]
[1754608588942,5.60505931,3894.8,3894.7,0.9999]
[1754608590045,5.60505931,3894.8,3893.9,1.0332]
[1754608590046,2.29429,3894.0,3893.9,2.7983]
[1754608590251,4.92929,3894.0,3893.9,3.5316]
[1754608590448,4.92929,3894.0,3893.9,4.4218]
[1754608590839,4.92929,3894.0,3893.9,3.5316]
[1754608591040,4.92929,3894.0,3893.9,2.7983]
[1754608591544,0.51334,3894.4,3894.2,1.7855]
[1754608591745,3.86774,3894.4,3894.3,4.4738]
[1754608591944,4.91314,3894.4,3894.3,4.4738]
[1754608592348,4.3998,3894.4,3894.3,4.4738]
[1754608592547,3.72113,3894.5,3894.3,1.8089]
[1754608592848,5.66473,3894.5,3894.4,4.4738]
[1754608593448,3.86778,3894.1,3894.0,4.4738]
[1754608593749,4.91318,3894.1,3894.0,4.4738]
[1754608594449,4.91318,3894.1,3894.0,2.8652]
[1754608594843,2.28301,3893.8,3893.7,7.6816]
[1754608595040,4.91321,3893.8,3893.7,7.6816]
[1754608595943,1.18848791,3894.4,3894.3,1.8089]
[1754608596252,1.62539,3894.1,3894.0,1.8089]
[1754608596448,4.91319,3894.1,3894.0,4.4738]
[1754608596842,4.3998,3894.1,3894.0,4.4738]
[1754608598844,3.3544,3894.1,3894.0,4.4738]
[1754608599155,0.5892,3894.1,3894.0,4.4738]
[1754608599857,1.77769791,3894.4,3894.3,4.4738]
[1754608600042,0.5892,3894.4,3894.3,4.4738]
[1754608600248,3.2078,3894.5,3894.3,2.32224]
[1754608600453,3.2078,3894.5,3894.4,4.4738]
[1754608600754,3.2078,3894.5,3893.9,1.28349]
[1754608600755,3.2078,3894.9,3894.8,4.4738]
[1754608601348,0.51327,3894.9,3894.8,4.4738]
[1754608601749,1.10247,3894.9,3894.8,2.8088]
[1754608601955,4.91307,3894.9,3894.8,2.8088]
[1754608602156,4.91307,3894.9,3894.8,5.4737]
[1754608602360,4.91307,3894.9,3894.8,3.8651]
[1754608602557,0.51327,3894.9,3894.8,5.4737]
[1754608602855,0.67514791,3895.3,3895.2,4.4738]
[1754608603046,3.88294791,3895.7,3895.6,1.8089]
[1754608603349,0.67514791,3895.8,3895.7,4.4738]
[1754608603554,4.3998,3895.8,3895.7,3.4175]
[1754608604258,4.3998,3895.8,3895.7,4.4738]
[1754608604443,2.6012,3895.8,3895.7,4.4738]
[1754608605750,1.112,3895.8,3895.7,4.4738]
[1754608606755,0.67514791,3896.0,3895.9,1.8089]
[1754608607055,5.1514,3896.1,3896.0,4.4738]
[1754608607356,5.9046,3896.1,3896.0,4.4738]
[1754608607655,6.57974791,3896.1,3896.0,4.4738]
[1754608607955,8.28274791,3896.1,3896.0,5.4737]
[1754608610856,7.6076,3896.1,3896.0,5.4737]
[1754608612552,3.2078,3896.1,3896.0,5.4737]
[1754608612753,3.2078,3896.6,3896.5,4.98686]
[1754608613350,3.2078,3896.6,3896.5,4.4738]
[1754608613859,0.51303,3896.8,3896.5,5.4737]
[1754608614153,2.45663,3896.8,3896.7,4.4738]
[1754608614358,3.86743,3896.8,3896.7,4.4738]
[1754608614856,4.91285,3896.6,3896.5,4.4174]
[1754608615060,4.91285,3896.6,3896.5,5.4737]
[1754608616560,4.91285,3896.6,3896.5,4.6069]
[1754608616859,4.91285,3896.6,3896.5,5.4737]
[1754608617955,4.91285,3896.6,3896.5,0.9999]
[1754608618156,8.12065,3896.6,3896.5,0.9999]
[1754608619359,8.12065,3896.6,3896.5,4.6069]
[1754608621860,8.12065,3896.6,3896.5,0.9999]
[1754608622259,8.12065,3896.6,3896.2,3.4542]
[1754608622260,2.2897,3896.3,3896.2,3.4542]
[1754608622463,2.2897,3896.3,3896.2,4.4541]
[1754608622464,4.9182,3896.3,3896.2,4.4541]
[1754608623262,4.9182,3896.3,3896.2,5.3152]
[1754608623461,4.9182,3896.3,3896.2,4.4541]
[1754608624070,4.9182,3896.3,3896.2,0.9999]
[1754608626268,4.9182,3896.3,3894.8,3.2078]
[1754608626269,4.91832,3895.3,3895.2,4.3153]
[1754608626463,4.91832,3895.3,3895.2,2.7014]
[1754608626668,0.51321,3895.4,3895.3,4.3153]
[1754608627273,3.72094,3895.9,3895.8,4.3153]
[1754608627465,4.31544,3895.9,3895.8,4.3153]
[1754608627666,7.11064,3895.9,3895.8,4.3153]
[1754608628672,1.10761,3896.2,3896.1,4.3153]
[1754608628863,0.51311,3896.2,3896.1,4.3153]
[1754608629063,3.2078,3896.4,3895.3,1.28306]
[1754608629064,1.1076,3896.3,3896.2,2.6143]
[1754608629269,3.9028,3896.3,3896.2,4.3153]
[1754608629577,1.10764,3895.9,3895.8,4.3153]
[1754608629872,0.5945,3895.9,3895.8,4.3153]
[1754608630072,0.51312,3896.1,3895.8,4.707]
[1754608630261,0.51311,3896.2,3895.9,2.6143]
[1754608630465,4.9182,3896.3,3896.2,4.3153]
[1754608630665,5.59232882,3896.3,3896.2,4.3153]
[1754608631068,5.79816541,3896.3,3896.2,2.7014]
[1754608631468,5.79816541,3896.3,3896.2,3.4542]
[1754608631669,5.79816541,3896.3,3896.2,3.46839617]
[1754608632372,1.38125199,3896.9,3896.2,3.46839617]
[1754608632373,3.2078,3896.9,3896.7,0.51303]
[1754608632566,3.2078,3896.9,3896.8,4.3153]
[1754608632762,0.20600013,3897.7,3897.5,1.1654]
[1754608632963,5.9182,3897.8,3897.7,1.2473]
[1754608633163,5.9182,3897.8,3897.7,2.4127]
[1754608633371,3.2078,3897.8,3897.7,2.4127]
[1754608633670,3.2078,3897.8,3897.7,2.42689617]
[1754608634268,7.6129,3897.8,3897.7,0.56159617]
[1754608634573,7.6129,3897.8,3897.7,0.01419617]
[1754608637167,8.12579,3897.8,3897.7,0.01419617]
[1754608637368,4.15123,3897.5,3897.4,0.9999]
[1754608637674,4.91803,3897.5,3897.4,0.9999]
[1754608639773,5.12367271,3897.5,3897.4,0.9999]
[1754608639971,4.91803,3897.5,3897.4,0.9999]
[1754608640566,4.91803,3897.5,3897.4,0.44312]
[1754608640567,5.12367689,3897.5,3897.4,0.44312]
[1754608640771,4.91814,3896.7,3896.6,6.1117]
[1754608640972,4.91814,3896.7,3896.6,6.339]
[1754608642769,4.91814,3896.7,3896.6,3.7552]
[1754608644170,4.91814,3896.7,3896.6,3.2078]
[1754608644377,4.91819,3896.3,3896.2,3.1312]
[1754608646378,4.07189,3896.3,3896.2,3.1312]
[1754608647981,4.91819,3896.3,3896.2,3.1312]
[1754608649972,1.0154,3896.9,3896.6,0.8611]
[1754608650173,22.00681,3896.9,3896.8,3.1312]
[1754608650378,23.52122814,3896.9,3896.8,3.1312]
[1754608651478,23.52122814,3896.9,3896.8,2.9039]
[1754608652285,5.58622814,3896.9,3896.8,2.9039]
[1754608652582,2.52956,3896.5,3896.4,0.9999]
[1754608652778,2.52956,3896.5,3896.4,1.5577]
[1754608652779,4.83556,3896.5,3896.4,1.5577]
[1754608654478,4.83556,3896.5,3896.4,0.9999]
[1754608654682,8.04336,3896.5,3896.4,0.9999]
[1754608654884,8.9180475,3896.5,3896.4,0.9999]
[1754608655279,1.74871,3895.4,3895.3,6.4571]
[1754608655488,2.69891,3895.4,3895.3,6.4571]
[1754608656987,4.83571,3895.4,3895.3,6.4571]
[1754608657886,4.05471,3895.4,3895.3,6.4571]
[1754608658889,3.21461,3895.4,3895.3,6.4571]
[1754608660789,2.7014,3895.4,3895.3,6.4571]
[1754608660985,5.47212,3896.1,3896.0,1.0359]
[1754608661185,20.97432,3896.1,3896.0,1.8201]
[1754608661382,21.64233095,3896.1,3896.0,1.8201]
[1754608661689,4.83564,3895.9,3895.8,0.5578]
[1754608662283,4.83571,3895.4,3895.3,3.2078]
[1754608662488,4.83571,3895.4,3895.3,4.2437]
[1754608662684,4.83571,3895.4,3895.3,5.0279]
[1754608662985,4.83571,3895.4,3895.3,5.8672]
[1754608664081,4.83571,3895.4,3895.3,6.4571]
[1754608664482,4.83571,3895.4,3895.3,5.0279]
[1754608664986,4.83571,3895.4,3895.3,3.2078]
[1754608665190,4.83576,3895.0,3894.9,5.0279]
[1754608665390,4.83576,3895.0,3894.9,5.8672]
[1754608665886,4.83576,3895.0,3894.9,6.2302]
[1754608666194,4.83576,3895.0,3894.9,6.4571]
[1754608668491,0.51325,3895.1,3895.0,2.6915]
[1754608668791,0.51322,3895.4,3895.3,1.3989]
[1754608668990,0.51322,3895.4,3895.3,3.2493]
[1754608669387,1.46342,3895.4,3895.3,3.2493]
[1754608669584,0.51326,3895.0,3894.9,3.2078]
[1754608669784,4.83576,3895.0,3894.9,6.2302]
[1754608670497,4.83576,3895.0,3894.9,7.457]
[1754608670795,2.7014,3895.0,3894.9,7.457]
[1754608671290,0.51326,3895.1,3895.0,1.8504]
[1754608671591,2.69896,3895.1,3895.0,3.2493]
[1754608671790,4.83576,3895.1,3895.0,3.2493]
[1754608673895,4.3225,3895.1,3895.0,3.2493]
[1754608674394,3.5415,3895.1,3895.0,3.2493]
[1754608675481,2.7014,3895.1,3895.0,3.2493]
[1754608675682,2.1857,3895.1,3895.0,3.2493]
[1754608676090,0.5132,3895.5,3895.3,1.3989]
[1754608676298,0.66822021,3895.7,3895.6,3.2493]
[1754608676601,0.51312,3896.1,3896.0,3.2493]
[1754608676602,1.46332,3896.1,3896.0,3.2493]
[1754608676793,0.9502,3896.1,3896.0,3.2493]
[1754608677296,0.51313,3896.0,3895.9,3.2078]
[1754608677485,4.83563,3896.0,3895.9,3.2078]
[1754608677796,4.3225,3895.4,3895.3,6.4571]
[1754608678385,4.3225,3895.4,3895.3,7.457]
[1754608678589,3.5415,3895.4,3895.3,7.457]
[1754608678788,2.1857,3895.4,3895.3,7.457]
[1754608679095,1.38798685,3896.1,3895.4,1.6235]
[1754608679287,4.05463,3896.1,3896.0,3.2493]
[1754608679493,4.3225,3896.1,3896.0,3.2493]
[1754608679692,3.5415,3896.1,3896.0,3.2493]
[1754608680197,4.3225,3896.1,3896.0,3.2493]
[1754608680397,2.6974,3896.1,3896.0,3.2493]
[1754608680591,1.0737,3896.2,3896.1,2.4082]
[1754608680797,4.0546,3896.2,3896.1,3.2493]
[1754608681000,4.8356,3896.2,3896.1,3.2493]
[1754608681304,4.3225,3896.2,3896.1,4.2492]
[1754608682599,4.3225,3896.2,3896.1,2.0358]
[1754608682800,4.3225,3896.2,3896.1,0.9999]
[1754608683302,22.2365,3896.2,3896.1,0.9999]
[1754608683502,23.11151408,3896.2,3896.1,0.9999]
[1754608683800,1.28279,3896.1,3895.4,3.2078]
[1754608684107,4.2586,3895.5,3895.4,4.9579]
[1754608684403,4.2586,3895.5,3895.4,7.5077]
[1754608686400,4.77179,3895.5,3895.4,3.2078]
[1754608686598,4.77179,3895.5,3895.4,3.7734]
[1754608686793,4.77179,3895.5,3895.4,6.512]
[1754608686993,4.77179,3895.5,3895.4,4.9579]
[1754608687799,4.77179,3895.5,3895.4,3.2078]
[1754608688305,5.44674319,3895.5,3895.4,3.2078]
[1754608689100,5.44674319,3895.5,3895.4,4.2077]
[1754608689406,5.44674319,3895.5,3895.4,3.2078]
[1754608690308,5.65392089,3895.5,3895.4,3.2078]
[1754608690603,4.77182,3895.3,3895.2,0.9999]
[1754608694103,22.67882,3895.3,3895.2,1.5655]
[1754608694408,23.56095089,3895.3,3895.2,2.75]
[1754608694703,23.56095089,3895.3,3895.2,3.639]
[1754608694908,23.56095089,3895.3,3895.2,4.3041]
[1754608695109,20.49973089,3895.3,3895.2,3.4151]
[1754608695300,22.20463089,3895.3,3895.2,5.2998]
[1754608695501,21.45466703,3895.3,3895.2,5.2998]
[1754608695701,22.29776703,3895.3,3895.2,5.2998]
[1754608696409,23.04766703,3895.3,3895.2,5.2998]
[1754608697710,0.88206703,3895.3,3895.2,5.2998]
[1754608698009,1.46536703,3895.5,3895.4,4.2999]
[1754608698711,0.88206703,3895.5,3895.4,4.2999]
[1754608699007,0.67495319,3895.5,3895.4,4.2999]
[1754608699203,17.904,3895.9,3895.6,4.81307]
[1754608699204,0.88200661,3895.8,3895.6,4.81307]
[1754608699410,0.67495319,3895.8,3895.7,4.2999]
[1754608699707,0.67495319,3895.8,3895.7,7.5077]
[1754608700105,0.88197499,3896.2,3896.1,1.707]
[1754608700301,0.88197499,3896.2,3896.1,4.2999]
[1754608700610,1.83697499,3896.2,3896.1,4.2999]
[1754608700811,2.21325319,3896.2,3896.1,4.2999]
[1754608701512,2.21325319,3896.2,3896.1,7.5077]